[Event "Early-Titled-Tuesday-Blitz-January-16-2024"]
[Site "Chess.com"]
[Date "2024.01.16"]
[Round "9"]
[White "LangesNasenhaar"]
[Black "NowInChess"]
[Result "1/2-1/2"]
[WhiteElo "2406"]
[BlackElo "2295"]
[TimeControl "180+1"]
[EndTime "9:48:17 PST"]
[Termination "Game drawn - insufficient material"]

1. Nf3 {[%clk 0:03:00.9]} 1... Nf6 {[%clk 0:02:59.5]} 2. g3 {[%clk 0:03:01.1]}
2... g6 {[%clk 0:02:59.8]} 3. b3 {[%clk 0:03:00.8]} 3... b5 {[%clk 0:02:57.6]}
4. Bb2 {[%clk 0:03:00]} 4... Bg7 {[%clk 0:02:57.7]} 5. Bg2 {[%clk 0:02:59.6]}
5... Bb7 {[%clk 0:02:57.8]} 6. O-O {[%clk 0:02:59.3]} 6... O-O {[%clk
0:02:57.9]} 7. c4 {[%clk 0:02:59.6]} 7... bxc4 {[%clk 0:02:56.7]} 8. bxc4 {[%clk
0:03:00]} 8... d6 {[%clk 0:02:57.3]} 9. d3 {[%clk 0:02:59.5]} 9... Nbd7 {[%clk
0:02:57.2]} 10. Nc3 {[%clk 0:02:59.6]} 10... c5 {[%clk 0:02:52.5]} 11. Rb1
{[%clk 0:02:59.4]} 11... Rb8 {[%clk 0:02:52.1]} 12. Qa4 {[%clk 0:02:59.3]} 12...
a6 {[%clk 0:02:13.9]} 13. Nd2 {[%clk 0:02:47.8]} 13... Bxg2 {[%clk 0:02:11.9]}
14. Kxg2 {[%clk 0:02:48.7]} 14... Qc7 {[%clk 0:02:01.3]} 15. Nd5 {[%clk
0:02:33.5]} 15... Nxd5 {[%clk 0:01:54.5]} 16. Bxg7 {[%clk 0:02:33.4]} 16... Ne3+
{[%clk 0:01:37]} 17. fxe3 {[%clk 0:02:32.7]} 17... Kxg7 {[%clk 0:01:37.9]} 18.
Ne4 {[%clk 0:02:25.7]} 18... Ne5 {[%clk 0:01:34.3]} 19. h3 {[%clk 0:02:20.3]}
19... h6 {[%clk 0:01:33.5]} 20. Nc3 {[%clk 0:02:18.5]} 20... Qc6+ {[%clk
0:01:28.5]} 21. Qxc6 {[%clk 0:02:17.8]} 21... Nxc6 {[%clk 0:01:29.4]} 22. Nd5
{[%clk 0:02:07.8]} 22... e6 {[%clk 0:01:24]} 23. Nc7 {[%clk 0:02:02.6]} 23... a5
{[%clk 0:01:18.1]} 24. Nb5 {[%clk 0:01:57.9]} 24... Rfd8 {[%clk 0:01:18.2]} 25.
e4 {[%clk 0:01:54.9]} 25... Nd4 {[%clk 0:01:15.4]} 26. Nxd4 {[%clk 0:01:48.7]}
26... cxd4 {[%clk 0:01:16.3]} 27. Rb5 {[%clk 0:01:37.4]} 27... Rxb5 {[%clk
0:01:08.7]} 28. cxb5 {[%clk 0:01:37.5]} 28... a4 {[%clk 0:01:08.7]} 29. Rb1
{[%clk 0:01:34.9]} 29... Rb8 {[%clk 0:01:07.5]} 30. b6 {[%clk 0:01:28.3]} 30...
Rb7 {[%clk 0:01:04.4]} 31. Rb4 {[%clk 0:01:16.6]} 31... e5 {[%clk 0:01:04]} 32.
Kf2 {[%clk 0:01:15.8]} 32... Kf6 {[%clk 0:01:01.9]} 33. Ke1 {[%clk 0:01:15.5]}
33... Ke6 {[%clk 0:01:01.9]} 34. Kd2 {[%clk 0:01:13.4]} 34... d5 {[%clk
0:00:59.9]} 35. Kc2 {[%clk 0:01:02.3]} 35... dxe4 {[%clk 0:00:54.7]} 36. dxe4
{[%clk 0:01:02.5]} 36... f5 {[%clk 0:00:53.8]} 37. Kd3 {[%clk 0:00:54.3]} 37...
Kd6 {[%clk 0:00:52.6]} 38. exf5 {[%clk 0:00:42.3]} 38... gxf5 {[%clk 0:00:53.5]}
39. g4 {[%clk 0:00:42.9]} 39... fxg4 {[%clk 0:00:35]} 40. hxg4 {[%clk
0:00:42.8]} 40... Kc5 {[%clk 0:00:33.1]} 41. Rxa4 {[%clk 0:00:40.8]} 41... Rxb6
{[%clk 0:00:32.8]} 42. Ra5+ {[%clk 0:00:39.4]} 42... Kd6 {[%clk 0:00:26.5]} 43.
Ke4 {[%clk 0:00:38.8]} 43... Rb2 {[%clk 0:00:26.3]} 44. Rd5+ {[%clk 0:00:30]}
44... Kc6 {[%clk 0:00:24.6]} 45. Rxe5 {[%clk 0:00:29.9]} 45... Rxe2+ {[%clk
0:00:21.4]} 46. Kxd4 {[%clk 0:00:30]} 46... Rg2 {[%clk 0:00:16]} 47. Re6+ {[%clk
0:00:29.6]} 47... Kb5 {[%clk 0:00:15.8]} 48. Rg6 {[%clk 0:00:25.6]} 48... Rxa2
{[%clk 0:00:15.4]} 49. Rxh6 {[%clk 0:00:25.2]} 49... Ra4+ {[%clk 0:00:15.5]} 50.
Ke3 {[%clk 0:00:24.1]} 50... Rxg4 {[%clk 0:00:16.4]} 51. Rh5+ {[%clk 0:00:23.8]}
51... Kb4 {[%clk 0:00:15.2]} 52. Rf5 {[%clk 0:00:23.2]} 52... Rc4 {[%clk
0:00:14.7]} 53. Rf4 {[%clk 0:00:22.9]} 53... Rxf4 {[%clk 0:00:14.7]} 54. Kxf4
{[%clk 0:00:23.8]} 1/2-1/2

[Event "Early-Titled-Tuesday-Blitz-January-16-2024"]
[Site "Chess.com"]
[Date "2024.01.16"]
[Round "9"]
[White "K_A_S_T_O_R"]
[Black "GothamChess"]
[Result "1-0"]
[WhiteElo "2919"]
[BlackElo "2728"]
[TimeControl "180+1"]
[EndTime "9:48:19 PST"]
[Termination "K_A_S_T_O_R won on time"]

1. e4 {[%clk 0:03:00.9]} 1... e6 {[%clk 0:02:58.8]} 2. d4 {[%clk 0:03:00.3]}
2... d5 {[%clk 0:02:59.4]} 3. Nc3 {[%clk 0:03:00.8]} 3... dxe4 {[%clk 0:03:00]}
4. Nxe4 {[%clk 0:03:00.8]} 4... Nf6 {[%clk 0:03:00.9]} 5. Nxf6+ {[%clk
0:02:54.5]} 5... gxf6 {[%clk 0:03:01.3]} 6. Nf3 {[%clk 0:02:53.8]} 6... Nc6
{[%clk 0:03:01.9]} 7. Bc4 {[%clk 0:02:48.2]} 7... Rg8 {[%clk 0:02:44]} 8. g3
{[%clk 0:02:46.1]} 8... b6 {[%clk 0:02:30]} 9. c3 {[%clk 0:02:35.7]} 9... Bb7
{[%clk 0:02:26.9]} 10. Qe2 {[%clk 0:02:31.1]} 10... Ne7 {[%clk 0:02:04.9]} 11.
Bb5+ {[%clk 0:02:18.5]} 11... c6 {[%clk 0:02:02.9]} 12. Ba4 {[%clk 0:02:15.6]}
12... Qd7 {[%clk 0:01:57.6]} 13. Rg1 {[%clk 0:02:09.9]} 13... O-O-O {[%clk
0:01:52.8]} 14. Bd2 {[%clk 0:02:04]} 14... Kb8 {[%clk 0:01:38.8]} 15. O-O-O
{[%clk 0:01:52.6]} 15... Ng6 {[%clk 0:01:33.2]} 16. h4 {[%clk 0:01:43.6]} 16...
Bd6 {[%clk 0:01:32.1]} 17. h5 {[%clk 0:01:40]} 17... Ne7 {[%clk 0:01:31.1]} 18.
Nh4 {[%clk 0:01:39.2]} 18... Qc7 {[%clk 0:01:18.6]} 19. Kb1 {[%clk 0:01:38.3]}
19... c5 {[%clk 0:01:15.2]} 20. Nf3 {[%clk 0:01:30]} 20... a6 {[%clk 0:01:01.1]}
21. Be3 {[%clk 0:01:24.1]} 21... c4 {[%clk 0:00:51]} 22. Bc2 {[%clk 0:01:22.8]}
22... f5 {[%clk 0:00:48.3]} 23. Ne5 {[%clk 0:01:16.6]} 23... Bxe5 {[%clk
0:00:48]} 24. dxe5 {[%clk 0:01:16.2]} 24... Nd5 {[%clk 0:00:45.1]} 25. Bh6
{[%clk 0:01:07.1]} 25... b5 {[%clk 0:00:37.2]} 26. g4 {[%clk 0:00:59.3]} 26...
Rxg4 {[%clk 0:00:33.5]} 27. Rxg4 {[%clk 0:00:57.2]} 27... fxg4 {[%clk
0:00:34.4]} 28. Qxg4 {[%clk 0:00:52.9]} 28... Qxe5 {[%clk 0:00:32.9]} 29. Bf4
{[%clk 0:00:47.3]} 29... Nxf4 {[%clk 0:00:26.2]} 30. Rxd8+ {[%clk 0:00:45.8]}
30... Kc7 {[%clk 0:00:22]} 31. Rf8 {[%clk 0:00:35.1]} 31... f5 {[%clk
0:00:11.4]} 32. Qd1 {[%clk 0:00:29.4]} 32... Nd3 {[%clk 0:00:05.9]} 33. Rf7+
{[%clk 0:00:22.9]} 33... Kb6 {[%clk 0:00:06.2]} 34. Qg1 {[%clk 0:00:19.5]} 34...
Qc5 {[%clk 0:00:03.6]} 35. Rxh7 {[%clk 0:00:16.3]} 35... b4 {[%clk 0:00:03.3]}
36. cxb4 {[%clk 0:00:13]} 36... Nxb4 {[%clk 0:00:04.2]} 37. Qe1 {[%clk
0:00:10.9]} 37... Nxc2 {[%clk 0:00:03.2]} 38. Kxc2 {[%clk 0:00:06.9]} 38... Be4+
{[%clk 0:00:02.4]} 39. Kc1 {[%clk 0:00:07.2]} 1-0

[Event "Early-Titled-Tuesday-Blitz-January-16-2024"]
[Site "Chess.com"]
[Date "2024.01.16"]
[Round "9"]
[White "krzyzan94"]
[Black "HPanesso"]
[Result "1-0"]
[WhiteElo "2813"]
[BlackElo "2648"]
[TimeControl "180+1"]
[EndTime "9:48:20 PST"]
[Termination "krzyzan94 won by checkmate"]

1. Nf3 {[%clk 0:03:00.9]} 1... c5 {[%clk 0:02:56.7]} 2. e4 {[%clk 0:03:00]} 2...
e6 {[%clk 0:02:51.3]} 3. d4 {[%clk 0:02:59.7]} 3... cxd4 {[%clk 0:02:51.3]} 4.
Nxd4 {[%clk 0:03:00.6]} 4... Nf6 {[%clk 0:02:51.7]} 5. Nc3 {[%clk 0:03:00.4]}
5... Nc6 {[%clk 0:02:52.1]} 6. a3 {[%clk 0:03:01]} 6... a6 {[%clk 0:02:48.5]} 7.
Nxc6 {[%clk 0:02:52.3]} 7... bxc6 {[%clk 0:02:47.3]} 8. e5 {[%clk 0:02:49.5]}
8... Nd5 {[%clk 0:02:47]} 9. Ne4 {[%clk 0:02:48.3]} 9... f5 {[%clk 0:02:47]} 10.
exf6 {[%clk 0:02:44.9]} 10... Nxf6 {[%clk 0:02:46.9]} 11. Bd3 {[%clk 0:02:41]}
11... d5 {[%clk 0:02:45.1]} 12. Nxf6+ {[%clk 0:02:32.3]} 12... Qxf6 {[%clk
0:02:44.9]} 13. O-O {[%clk 0:02:27.6]} 13... e5 {[%clk 0:02:28.5]} 14. Qh5+
{[%clk 0:02:23.4]} 14... Kd7 {[%clk 0:02:21.6]} 15. Bg5 {[%clk 0:02:21.4]} 15...
Qd6 {[%clk 0:02:13.2]} 16. Qf7+ {[%clk 0:02:03]} 16... Be7 {[%clk 0:02:07.4]}
17. Bf5+ {[%clk 0:01:45.3]} 17... Kd8 {[%clk 0:02:05]} 18. Qxg7 {[%clk
0:01:45.4]} 18... Re8 {[%clk 0:01:53.4]} 19. Bxh7 {[%clk 0:01:37.8]} 19... Bxg5
{[%clk 0:01:52.7]} 20. Qxg5+ {[%clk 0:01:37.6]} 20... Kc7 {[%clk 0:01:52]} 21.
c4 {[%clk 0:01:26.3]} 21... Be6 {[%clk 0:01:50.1]} 22. cxd5 {[%clk 0:01:15.7]}
22... Bxd5 {[%clk 0:01:49.8]} 23. Qe3 {[%clk 0:01:09.6]} 23... e4 {[%clk
0:01:22.9]} 24. Bf5 {[%clk 0:01:03.2]} 24... Re5 {[%clk 0:01:21.3]} 25. Bh3
{[%clk 0:01:02.3]} 25... Kb7 {[%clk 0:01:21.1]} 26. Rfd1 {[%clk 0:00:55.9]}
26... Rh8 {[%clk 0:01:16.5]} 27. Rd4 {[%clk 0:00:52.6]} 27... a5 {[%clk
0:00:51.6]} 28. Rad1 {[%clk 0:00:40.8]} 28... Qg6 {[%clk 0:00:44.9]} 29. b4
{[%clk 0:00:21.5]} 29... Reh5 {[%clk 0:00:40]} 30. Kf1 {[%clk 0:00:21.4]} 30...
Qd6 {[%clk 0:00:25.7]} 31. b5 {[%clk 0:00:19.8]} 31... Qxh2 {[%clk 0:00:24.4]}
32. bxc6+ {[%clk 0:00:19.6]} 32... Bxc6 {[%clk 0:00:24.6]} 33. Rd7+ {[%clk
0:00:16.4]} 33... Kc8 {[%clk 0:00:23.5]} 34. Rd8+ {[%clk 0:00:10.7]} 34... Kb7
{[%clk 0:00:23.1]} 35. R1d7+ {[%clk 0:00:09.4]} 35... Bxd7 {[%clk 0:00:10.4]}
36. Rxd7+ {[%clk 0:00:10.3]} 36... Ka6 {[%clk 0:00:09.8]} 37. Ra7+ {[%clk
0:00:07.7]} 37... Kb5 {[%clk 0:00:09]} 38. Qb3+ {[%clk 0:00:04.5]} 38... Kc5
{[%clk 0:00:08.9]} 39. Rxa5+ {[%clk 0:00:03.6]} 39... Kc6 {[%clk 0:00:07.4]} 40.
Ra6+ {[%clk 0:00:03.8]} 40... Kc7 {[%clk 0:00:05.6]} 41. Qb6# {[%clk 0:00:03.3]}
1-0

[Event "Early-Titled-Tuesday-Blitz-January-16-2024"]
[Site "Chess.com"]
[Date "2024.01.16"]
[Round "9"]
[White "Grischuk"]
[Black "klimkoj"]
[Result "1-0"]
[WhiteElo "3085"]
[BlackElo "2870"]
[TimeControl "180+1"]
[EndTime "9:48:21 PST"]
[Termination "Grischuk won by resignation"]

1. d4 {[%clk 0:03:00.9]} 1... Nf6 {[%clk 0:02:56.4]} 2. c4 {[%clk 0:03:01.4]}
2... e6 {[%clk 0:02:56.9]} 3. Bg5 {[%clk 0:03:01.7]} 3... Bb4+ {[%clk
0:02:54.7]} 4. Nd2 {[%clk 0:03:01.5]} 4... d5 {[%clk 0:02:54.2]} 5. e3 {[%clk
0:02:59.3]} 5... O-O {[%clk 0:02:52.9]} 6. Nf3 {[%clk 0:02:58.5]} 6... h6 {[%clk
0:02:51.4]} 7. Bh4 {[%clk 0:02:58.3]} 7... Nbd7 {[%clk 0:02:45.8]} 8. Rc1 {[%clk
0:02:55.4]} 8... a6 {[%clk 0:02:35]} 9. a3 {[%clk 0:02:46.8]} 9... Be7 {[%clk
0:02:34.5]} 10. Be2 {[%clk 0:02:41.5]} 10... dxc4 {[%clk 0:02:25.1]} 11. Nxc4
{[%clk 0:02:40.3]} 11... c5 {[%clk 0:02:24.9]} 12. O-O {[%clk 0:02:35.8]} 12...
b5 {[%clk 0:02:21.7]} 13. Nce5 {[%clk 0:02:34.8]} 13... Bb7 {[%clk 0:01:39.7]}
14. Bxf6 {[%clk 0:02:32.8]} 14... Nxf6 {[%clk 0:01:27.8]} 15. dxc5 {[%clk
0:02:32.7]} 15... Bd5 {[%clk 0:01:27.3]} 16. b4 {[%clk 0:02:22.7]} 16... Qc7
{[%clk 0:01:24.3]} 17. Qc2 {[%clk 0:02:21.3]} 17... a5 {[%clk 0:01:14]} 18. Qb1
{[%clk 0:02:01.6]} 18... axb4 {[%clk 0:01:09.6]} 19. axb4 {[%clk 0:02:02.5]}
19... Ra3 {[%clk 0:01:09.8]} 20. Bxb5 {[%clk 0:01:27.5]} 20... Rb3 {[%clk
0:01:00]} 21. Qc2 {[%clk 0:01:13.3]} 21... Rxb4 {[%clk 0:01:00.3]} 22. Be2
{[%clk 0:01:05.5]} 22... Rfb8 {[%clk 0:00:45.1]} 23. Nd3 {[%clk 0:01:03.9]}
23... Be4 {[%clk 0:00:42.3]} 24. Qd2 {[%clk 0:00:50.6]} 24... Bxd3 {[%clk
0:00:28.7]} 25. Qxd3 {[%clk 0:00:49.9]} 25... Rb2 {[%clk 0:00:24.1]} 26. c6
{[%clk 0:00:38.6]} 26... Nd5 {[%clk 0:00:23.3]} 27. Nd4 {[%clk 0:00:31.2]} 27...
Bf6 {[%clk 0:00:21.4]} 28. Bf3 {[%clk 0:00:30.5]} 28... Ne7 {[%clk 0:00:16.6]}
29. h3 {[%clk 0:00:24.8]} 29... e5 {[%clk 0:00:15.5]} 30. Nf5 {[%clk 0:00:24.3]}
30... Ng6 {[%clk 0:00:09.8]} 31. Rfd1 {[%clk 0:00:21.5]} 31... Nf8 {[%clk
0:00:09.5]} 32. Qd6 {[%clk 0:00:20.7]} 32... Rc8 {[%clk 0:00:09.2]} 33. Nxh6+
{[%clk 0:00:19.8]} 33... Kh8 {[%clk 0:00:04.2]} 34. Nf5 {[%clk 0:00:18.1]} 34...
Ne6 {[%clk 0:00:03.5]} 35. Qxc7 {[%clk 0:00:17.2]} 35... Rxc7 {[%clk 0:00:04.4]}
36. Rd7 {[%clk 0:00:16.9]} 36... e4 {[%clk 0:00:02.9]} 37. Bxe4 {[%clk 0:00:13]}
37... Ng5 {[%clk 0:00:03.4]} 38. Rxc7 {[%clk 0:00:11.6]} 38... Nxe4 {[%clk
0:00:04.1]} 39. Rxf7 {[%clk 0:00:11.2]} 39... Nxf2 {[%clk 0:00:04]} 40. c7
{[%clk 0:00:10.7]} 1-0

[Event "Early-Titled-Tuesday-Blitz-January-16-2024"]
[Site "Chess.com"]
[Date "2024.01.16"]
[Round "9"]
[White "ninguno46"]
[Black "Alexei_Kornev"]
[Result "1/2-1/2"]
[WhiteElo "2547"]
[BlackElo "2703"]
[TimeControl "180+1"]
[EndTime "9:48:21 PST"]
[Termination "Game drawn - insufficient material"]

1. d4 {[%clk 0:02:59]} 1... Nf6 {[%clk 0:02:59.7]} 2. c4 {[%clk 0:02:58.8]} 2...
g6 {[%clk 0:03:00]} 3. Nc3 {[%clk 0:02:59.4]} 3... d5 {[%clk 0:03:00.2]} 4. Nf3
{[%clk 0:02:58.6]} 4... Bg7 {[%clk 0:02:59.9]} 5. Bg5 {[%clk 0:02:59.2]} 5...
Ne4 {[%clk 0:02:58]} 6. Bh4 {[%clk 0:02:59.2]} 6... Nxc3 {[%clk 0:02:54.9]} 7.
bxc3 {[%clk 0:03:00.1]} 7... c5 {[%clk 0:02:55.1]} 8. cxd5 {[%clk 0:02:59.2]}
8... Qxd5 {[%clk 0:02:56]} 9. e3 {[%clk 0:02:59.7]} 9... Nc6 {[%clk 0:02:55.7]}
10. Be2 {[%clk 0:02:59.4]} 10... cxd4 {[%clk 0:02:55.4]} 11. cxd4 {[%clk
0:02:59.1]} 11... Qa5+ {[%clk 0:02:55.5]} 12. Qd2 {[%clk 0:02:58.5]} 12... Qxd2+
{[%clk 0:02:55.4]} 13. Kxd2 {[%clk 0:02:58.4]} 13... O-O {[%clk 0:02:55]} 14.
Rab1 {[%clk 0:02:51.5]} 14... b6 {[%clk 0:02:53.6]} 15. Rhc1 {[%clk 0:02:49.8]}
15... Bb7 {[%clk 0:02:49.1]} 16. Bb5 {[%clk 0:02:47.5]} 16... Rfc8 {[%clk
0:02:38.4]} 17. Bxc6 {[%clk 0:02:44.7]} 17... Bxc6 {[%clk 0:02:37.5]} 18. Bxe7
{[%clk 0:02:41]} 18... Bd5 {[%clk 0:02:36.8]} 19. Rxc8+ {[%clk 0:02:31.5]} 19...
Rxc8 {[%clk 0:02:37.7]} 20. a3 {[%clk 0:02:11.8]} 20... f6 {[%clk 0:02:33.7]}
21. Rc1 {[%clk 0:02:07.3]} 21... Rxc1 {[%clk 0:02:32.6]} 22. Kxc1 {[%clk
0:02:07]} 22... Kf7 {[%clk 0:02:33.3]} 23. Bd6 {[%clk 0:02:03.8]} 23... Ke6
{[%clk 0:02:31.8]} 24. Bb8 {[%clk 0:01:53.6]} 24... Bf8 {[%clk 0:02:27.3]} 25.
Kb2 {[%clk 0:01:52.1]} 25... a6 {[%clk 0:02:26.3]} 26. Ba7 {[%clk 0:01:51.1]}
26... b5 {[%clk 0:02:24.8]} 27. Bb6 {[%clk 0:01:50.6]} 27... Bd6 {[%clk
0:02:21.7]} 28. h3 {[%clk 0:01:49.9]} 28... h5 {[%clk 0:02:20.6]} 29. Ne1 {[%clk
0:01:48.4]} 29... g5 {[%clk 0:02:16.7]} 30. f3 {[%clk 0:01:40.6]} 30... f5
{[%clk 0:02:16.7]} 31. Bc5 {[%clk 0:01:34.8]} 31... Bxc5 {[%clk 0:02:09.9]} 32.
dxc5 {[%clk 0:01:34.7]} 32... Bc4 {[%clk 0:02:10.5]} 33. f4 {[%clk 0:01:24.8]}
33... gxf4 {[%clk 0:02:00.9]} 34. exf4 {[%clk 0:01:24.5]} 34... Kd5 {[%clk
0:02:01.1]} 35. Kc3 {[%clk 0:01:19.1]} 35... Kxc5 {[%clk 0:01:59.1]} 36. Nf3
{[%clk 0:01:17.6]} 36... a5 {[%clk 0:01:58]} 37. Ne5 {[%clk 0:01:07.5]} 37...
b4+ {[%clk 0:01:57.7]} 38. axb4+ {[%clk 0:01:07.2]} 38... axb4+ {[%clk
0:01:58.6]} 39. Kb2 {[%clk 0:01:07.1]} 39... Bf1 {[%clk 0:01:50.7]} 40. g4
{[%clk 0:01:02.9]} 40... fxg4 {[%clk 0:01:50.3]} 41. hxg4 {[%clk 0:01:03.1]}
41... h4 {[%clk 0:01:49.6]} 42. g5 {[%clk 0:01:02.7]} 42... h3 {[%clk
0:01:48.5]} 43. g6 {[%clk 0:00:58.2]} 43... h2 {[%clk 0:01:34.9]} 44. g7 {[%clk
0:00:58.2]} 44... h1=Q {[%clk 0:01:33.9]} 45. g8=Q {[%clk 0:00:58.4]} 45... Qh2+
{[%clk 0:01:33.7]} 46. Ka1 {[%clk 0:00:56.7]} 46... Qxf4 {[%clk 0:01:27.8]} 47.
Qc8+ {[%clk 0:00:50.5]} 47... Kd4 {[%clk 0:01:26.3]} 48. Nc6+ {[%clk 0:00:44.2]}
48... Kc3 {[%clk 0:01:19.2]} 49. Na5+ {[%clk 0:00:37.7]} 49... Kd3 {[%clk
0:01:15.6]} 50. Qd7+ {[%clk 0:00:31.3]} 50... Ke2 {[%clk 0:01:12.7]} 51. Qe6+
{[%clk 0:00:21.6]} 51... Kf2 {[%clk 0:01:09.9]} 52. Qa2+ {[%clk 0:00:20.2]}
52... Kg1 {[%clk 0:01:09]} 53. Qb2 {[%clk 0:00:18.6]} 53... Bd3 {[%clk
0:00:56.6]} 54. Nb3 {[%clk 0:00:16.7]} 54... Bf1 {[%clk 0:00:41.8]} 55. Qd4+
{[%clk 0:00:16.1]} 55... Qxd4+ {[%clk 0:00:37.9]} 56. Nxd4 {[%clk 0:00:16.7]}
56... Kf2 {[%clk 0:00:38.4]} 57. Nc6 {[%clk 0:00:16.7]} 57... b3 {[%clk
0:00:38.1]} 58. Na5 {[%clk 0:00:16.6]} 58... Be2 {[%clk 0:00:37.3]} 59. Nxb3
{[%clk 0:00:16.7]} 1/2-1/2

[Event "Early-Titled-Tuesday-Blitz-January-16-2024"]
[Site "Chess.com"]
[Date "2024.01.16"]
[Round "9"]
[White "Allion2017"]
[Black "stepanosinovsky"]
[Result "0-1"]
[WhiteElo "2052"]
[BlackElo "2386"]
[TimeControl "180+1"]
[EndTime "9:48:22 PST"]
[Termination "stepanosinovsky won by resignation"]

1. d4 {[%clk 0:02:59.1]} 1... Nf6 {[%clk 0:03:00]} 2. c4 {[%clk 0:02:57.7]} 2...
g6 {[%clk 0:03:00.9]} 3. Nc3 {[%clk 0:02:57.1]} 3... Bg7 {[%clk 0:03:01.8]} 4.
e4 {[%clk 0:02:57.5]} 4... O-O {[%clk 0:03:02.7]} 5. f3 {[%clk 0:02:58.1]} 5...
d6 {[%clk 0:03:02.7]} 6. Be3 {[%clk 0:02:58]} 6... c5 {[%clk 0:03:03.2]} 7. dxc5
{[%clk 0:02:56.9]} 7... dxc5 {[%clk 0:03:04.1]} 8. Qxd8 {[%clk 0:02:57.2]} 8...
Rxd8 {[%clk 0:03:04.5]} 9. Bxc5 {[%clk 0:02:57.8]} 9... Nc6 {[%clk 0:03:01.4]}
10. Ba3 {[%clk 0:02:56.9]} 10... b6 {[%clk 0:02:25.3]} 11. Rd1 {[%clk
0:02:46.1]} 11... Nd4 {[%clk 0:02:10.1]} 12. Kf2 {[%clk 0:02:37.4]} 12... e6
{[%clk 0:01:42.1]} 13. Nge2 {[%clk 0:02:32.7]} 13... Ne8 {[%clk 0:01:06.5]} 14.
Nb5 {[%clk 0:02:24.5]} 14... e5 {[%clk 0:01:03.9]} 15. Nexd4 {[%clk 0:02:13.8]}
15... exd4 {[%clk 0:01:01.2]} 16. Bd3 {[%clk 0:02:14.1]} 16... a6 {[%clk
0:00:50.8]} 17. f4 {[%clk 0:01:49.4]} 17... axb5 {[%clk 0:00:46.9]} 18. cxb5
{[%clk 0:01:50]} 18... Nf6 {[%clk 0:00:24.4]} 19. e5 {[%clk 0:01:47.3]} 19...
Ng4+ {[%clk 0:00:24]} 20. Kg3 {[%clk 0:01:45.4]} 20... Ne3 {[%clk 0:00:20]} 21.
Rc1 {[%clk 0:01:46]} 21... Bf5 {[%clk 0:00:17.5]} 22. Bxf5 {[%clk 0:01:35.2]}
22... Nxf5+ {[%clk 0:00:18.4]} 23. Kf3 {[%clk 0:01:34.4]} 23... h5 {[%clk
0:00:18.9]} 24. Rc7 {[%clk 0:01:29.9]} 24... d3 {[%clk 0:00:19.2]} 25. Rd1
{[%clk 0:01:28.1]} 25... Nd4+ {[%clk 0:00:17.1]} 26. Ke4 {[%clk 0:01:23.7]}
26... Nxb5 {[%clk 0:00:18]} 27. Rb7 {[%clk 0:01:21.1]} 27... Ra4+ {[%clk
0:00:17.1]} 28. Ke3 {[%clk 0:01:10.2]} 28... Nxa3 {[%clk 0:00:17]} 29. bxa3
{[%clk 0:01:07.4]} 29... Rxa3 {[%clk 0:00:14.1]} 30. Rxb6 {[%clk 0:01:08.3]}
30... Bf8 {[%clk 0:00:14.3]} 31. Rc6 {[%clk 0:01:03.3]} 31... d2+ {[%clk
0:00:13.2]} 32. Ke2 {[%clk 0:01:02.4]} 32... Rxa2 {[%clk 0:00:13]} 33. g3 {[%clk
0:01:01.4]} 33... Rb2 {[%clk 0:00:11.3]} 34. e6 {[%clk 0:00:54.9]} 34... fxe6
{[%clk 0:00:10.3]} 35. Rxe6 {[%clk 0:00:53.8]} 35... Kf7 {[%clk 0:00:10.8]} 36.
Rc6 {[%clk 0:00:52.9]} 36... Rd7 {[%clk 0:00:10.6]} 37. h3 {[%clk 0:00:50]}
37... Bb4 {[%clk 0:00:10.4]} 38. g4 {[%clk 0:00:47.5]} 38... Re7+ {[%clk
0:00:10.9]} 39. Kf2 {[%clk 0:00:46]} 39... hxg4 {[%clk 0:00:11.8]} 40. hxg4
{[%clk 0:00:34.9]} 40... Re1 {[%clk 0:00:12.2]} 41. Rc7+ {[%clk 0:00:34.1]}
41... Ke6 {[%clk 0:00:11.7]} 42. Rc6+ {[%clk 0:00:34.5]} 42... Kd5 {[%clk
0:00:11.3]} 43. Rxd2+ {[%clk 0:00:26.2]} 43... Rxd2+ {[%clk 0:00:11.3]} 44. Kxe1
{[%clk 0:00:24.3]} 44... Kxc6 {[%clk 0:00:12.2]} 0-1

[Event "Early-Titled-Tuesday-Blitz-January-16-2024"]
[Site "Chess.com"]
[Date "2024.01.16"]
[Round "9"]
[White "yonaltimur"]
[Black "masterofpuppets2"]
[Result "0-1"]
[WhiteElo "2323"]
[BlackElo "2537"]
[TimeControl "180+1"]
[EndTime "9:48:24 PST"]
[Termination "masterofpuppets2 won on time"]

1. e4 {[%clk 0:03:00.9]} 1... c5 {[%clk 0:02:56.4]} 2. Nf3 {[%clk 0:02:54.4]}
2... Nc6 {[%clk 0:02:56.5]} 3. Bb5 {[%clk 0:02:52.3]} 3... e6 {[%clk 0:02:56.2]}
4. O-O {[%clk 0:02:51.2]} 4... Nge7 {[%clk 0:02:56.3]} 5. c3 {[%clk 0:02:49.2]}
5... d5 {[%clk 0:02:52]} 6. exd5 {[%clk 0:02:48.9]} 6... Qxd5 {[%clk 0:02:51.3]}
7. d4 {[%clk 0:02:48.3]} 7... cxd4 {[%clk 0:02:51.2]} 8. Nxd4 {[%clk 0:02:48.4]}
8... Bd7 {[%clk 0:02:50.5]} 9. Nxc6 {[%clk 0:02:46.1]} 9... Qxb5 {[%clk
0:02:45.4]} 10. Nd4 {[%clk 0:02:45.6]} 10... Qa5 {[%clk 0:02:36.8]} 11. Na3
{[%clk 0:02:43.8]} 11... Rc8 {[%clk 0:02:26.6]} 12. Qe2 {[%clk 0:02:39]} 12...
Ng6 {[%clk 0:02:18.1]} 13. Nc4 {[%clk 0:02:25.5]} 13... Qa6 {[%clk 0:02:16.1]}
14. Ne3 {[%clk 0:02:22.3]} 14... Qxe2 {[%clk 0:02:08.3]} 15. Nxe2 {[%clk
0:02:23.2]} 15... Bb5 {[%clk 0:01:51.8]} 16. Re1 {[%clk 0:02:22.6]} 16... Bc5
{[%clk 0:01:51.5]} 17. Ng3 {[%clk 0:02:21.2]} 17... O-O {[%clk 0:01:45.8]} 18.
a4 {[%clk 0:02:19.1]} 18... Bd3 {[%clk 0:01:44.8]} 19. b4 {[%clk 0:02:15.4]}
19... Be7 {[%clk 0:01:38.3]} 20. Bb2 {[%clk 0:02:11.4]} 20... Bf6 {[%clk
0:01:31.5]} 21. Ra3 {[%clk 0:02:07.1]} 21... Nf4 {[%clk 0:01:28.4]} 22. Ng4
{[%clk 0:02:06.1]} 22... Bh4 {[%clk 0:01:19.8]} 23. Ne5 {[%clk 0:02:01.8]} 23...
Rfd8 {[%clk 0:01:13.4]} 24. Nf3 {[%clk 0:01:39.9]} 24... Bf6 {[%clk 0:01:05.4]}
25. h3 {[%clk 0:01:34.3]} 25... h6 {[%clk 0:00:53.1]} 26. Nd2 {[%clk 0:01:26.5]}
26... Bc2 {[%clk 0:00:44.5]} 27. Nde4 {[%clk 0:01:20.9]} 27... Be7 {[%clk
0:00:44.8]} 28. Bc1 {[%clk 0:01:09.6]} 28... Nd5 {[%clk 0:00:38]} 29. Bb2 {[%clk
0:00:57.4]} 29... Bd3 {[%clk 0:00:37.4]} 30. f3 {[%clk 0:00:53.4]} 30... Bc4
{[%clk 0:00:36.3]} 31. Kf2 {[%clk 0:00:53]} 31... Nf4 {[%clk 0:00:36.6]} 32. Kg1
{[%clk 0:00:39]} 32... Nd3 {[%clk 0:00:35.7]} 33. Rb1 {[%clk 0:00:38.6]} 33...
Nxb2 {[%clk 0:00:33.2]} 34. Rxb2 {[%clk 0:00:39.5]} 34... Rd1+ {[%clk
0:00:33.2]} 35. Kf2 {[%clk 0:00:33.5]} 35... Rcd8 {[%clk 0:00:28.5]} 36. Ne2
{[%clk 0:00:25.8]} 36... f5 {[%clk 0:00:26]} 37. N4g3 {[%clk 0:00:15.2]} 37...
Bh4 {[%clk 0:00:23.7]} 38. f4 {[%clk 0:00:11.8]} 38... e5 {[%clk 0:00:21.1]} 39.
Kf3 {[%clk 0:00:08.8]} 39... Bd5+ {[%clk 0:00:16.2]} 40. Ke3 {[%clk 0:00:08.4]}
40... exf4+ {[%clk 0:00:15.2]} 41. Kxf4 {[%clk 0:00:09.3]} 41... Be6 {[%clk
0:00:12.6]} 42. Ke5 {[%clk 0:00:08.9]} 42... Bc8 {[%clk 0:00:11.6]} 43. c4
{[%clk 0:00:02.3]} 43... Re8+ {[%clk 0:00:11.5]} 0-1